fUSD/lending_fUSD_20260307
["ID","MTS","AMOUNT","RATE_DAILY","PERIOD"]
[407882406,1772885441503,-1000.0,0.00017354,2]
[407882407,1772885441513,-271.67882507,0.00017354,2]
[407882408,1772885441523,-693.3919763,0.00017354,2]
[407882409,1772885441533,-259.13725688,0.00017354,2]
[407882410,1772885441543,-1000.0,0.00017354,2]
[407882411,1772885441552,-1036.15189384,0.00017354,2]
[407882412,1772885441562,-500.0,0.00017354,2]
[407882413,1772885441571,-500.0,0.00017354,2]
[407882414,1772885441581,-500.0,0.00017354,2]
[407882415,1772885441590,-500.0,0.00017354,2]
[407882416,1772885441603,-500.0,0.00017354,2]
[407882417,1772885441613,-693.3919763,0.00017354,2]
[407882418,1772885441623,-500.0,0.00017354,2]
[407882419,1772885441633,-500.0,0.00017354,2]
[407882420,1772885441643,-500.0,0.00017354,2]
[407882421,1772885441652,-500.0,0.00017354,2]
[407882422,1772885441662,-500.0,0.00017354,2]
[407882423,1772885441675,-500.0,0.00017354,2]
[407882424,1772885441684,-301.29,0.00017388,2]
[407882425,1772885441694,-719.04747942,0.00017409,2]
[407882426,1772885441703,-745.65223616,0.00017464,2]
[407882427,1772885441713,-1649.84521295,0.00017469,2]
[407882428,1772885441723,-1544.86335969,0.00017469,2]
[407882429,1772885441733,-166.66,0.00017516,2]
[407882430,1772885441742,-773.2413689,0.00017519,2]
[407882431,1772885441751,-2100.0,0.00017534,7]
[407882432,1772885441760,-1000.0,0.00017534,2]
[407882433,1772885441770,-801.85129955,0.00017574,2]
[407882434,1772885441780,-971.7864506,0.00017607,2]
[407882435,1772885441790,-514.0,0.00017615,2]
[407882436,1772885441799,-831.51979763,0.00017629,2]
[407882437,1772885441809,-862.28603014,0.00017684,2]
[407882438,1772885441819,-2000.0,0.00017719,2]
[407882439,1772885441829,-894.19061326,0.00017739,2]
[407882440,1772885441838,-1600.0,0.00017748,2]
[407882441,1772885441848,-927.27566595,0.00017794,2]
[407882442,1772885441858,-205.33524266,0.00017807,2]
[407882443,1772885441868,-3000.0,0.00017808,7]
[407882444,1772885441877,-150.0,0.00017808,2]
[407882445,1772885441887,-1000.0,0.00017808,2]
[407882446,1772885441896,-151.00001,0.00017808,2]
[407882447,1772885441906,-961.58486559,0.00017849,2]
[407882448,1772885441916,-150.0,0.00017863,2]
[407882449,1772885441926,-500.0,0.00017902,2]
[407882450,1772885441936,-719.04747942,0.00017902,2]
[407882451,1772885441945,-997.16350561,0.00017904,2]
[407882452,1772885441955,-150.0,0.00017918,2]
[407882453,1772885441964,-1649.84521295,0.00017955,2]
[407882454,1772885441974,-1544.86335969,0.00017955,2]
[407882455,1772885441983,-150.0,0.00017966,5]
[407882456,1772885441993,-275.83971174,0.00017966,5]
[407882457,1772885442002,-150.0,0.00017972,2]
[407882458,1772885442013,-771.81149,0.00018,2]
[407882459,1772885442025,-166.66,0.00018042,2]
[407882460,1772885442035,-40660.1997619,0.0001805,2]
[407882461,1772885442044,-216.8348663,0.0001805,2]
[407882462,1772885442053,-1000.0,0.00018082,2]
[407882463,1772885442063,-523.0,0.00018206,2]
[407882464,1772885442072,-539.0,0.00018206,2]
[407882465,1772885442082,-565.0,0.00018206,2]
[407882466,1772885442091,-15013.737246,0.00018349,2]
[407882467,1772885442101,-3000.0,0.00018356,7]
[407882468,1772885442111,-1000.0,0.00018356,2]
[407882469,1772885442120,-1000.0,0.00018381,2]
[407882470,1772885442130,-1000.0,0.00018381,2]
[407882471,1772885442140,-1000.0,0.00018381,2]
[407882472,1772885442149,-1000.0,0.00018381,2]
[407882473,1772885442159,-973.09165327,0.00018381,2]
[407882474,1772885442168,-2000.0,0.00018381,2]
[407882475,1772885442178,-1649.84521295,0.00018441,2]
[407882476,1772885442187,-1544.86335969,0.00018441,2]
[407882477,1772885442197,-500.0,0.0001845,2]
[407882478,1772885442206,-519.65980551,0.0001845,2]
[407882479,1772885442216,-166.66,0.00018568,2]
[407882480,1772885442225,-294.2231745,0.00018577,2]
[407882481,1772885442235,-2000.0,0.00018581,2]
[407882482,1772885442245,-9072.5168845,0.00018591,2]
[407882483,1772885442255,-2100.0,0.0001863,7]
[407882484,1772885442264,-1000.0,0.0001863,2]
[407882485,1772885442273,-922.0,0.00018642,2]
[407882486,1772885442283,-175.28,0.00018712,2]
[407882487,1772885442292,-2000.0,0.00018781,2]
[407882488,1772885442302,-32839.4623957,0.0001879,2]
[407882489,1772885442319,-15341.31009485,0.0001879,2]
[407882490,1772885442482,-522.0,0.00016154,2]
[407882491,1772885442492,-67.89471263,0.00016209,2]
[407882492,1772885442502,-454.10528737,0.00016209,2]
[407882493,1772885442512,-522.0,0.00016263,2]
[407882494,1772885442521,-241.90263995,0.00016438,2]
[407882495,1772885442531,-12172.30844768,0.0001879,2]
[407882496,1772885442551,-3485.0,0.0001879,2]
[407882509,1772885446139,-522.0,0.00016318,2]
[407882510,1772885446148,-481.0,0.00016373,2]
[407882511,1772885446299,-151.0,0.00015624,2]
[407882512,1772885446309,-41.0,0.00016373,2]
[407882513,1772885446319,-522.0,0.00016428,2]
[407882514,1772885446328,-303.80588186,0.00018381,2]
[407882515,1772885446338,-62.79411676,0.0001879,2]
[407882516,1772885446351,-502.88415006,0.0001879,2]
[407882521,1772886410138,-205.41286147,0.00013333,2]
[407882522,1772886592789,163.93582462,0.000115,2]
[407882524,1772886631488,-326.58713853,0.00013333,2]
[407882525,1772886631498,-500.0,0.00014463,2]
[407882526,1772886631507,-27.7253634,0.00014563,2]
[407882527,1772886631519,-222.2746366,0.00014563,2]
[407882528,1772886631528,-166.90784038,0.00014807,2]
[407882529,1772886631537,-264.76564394,0.00014907,2]
[407882530,1772886631667,-289.88510599,0.00014907,2]
[407882531,1772886631679,-427.01925007,0.00014907,2]
[407882532,1772886631689,-280.31432199,0.00015038,2]
[407882533,1772886631699,-500.0,0.00015623,2]
[407882534,1772886631707,-161.16,0.00016123,2]
[407882535,1772886631717,-161.16,0.00016393,2]
[407882536,1772886631726,-300.0,0.00016649,2]
[407882537,1772886631736,-1200.0,0.00016649,2]
[407882538,1772886631746,-300.0,0.00016649,2]
[407882539,1772886631755,-578.20924308,0.0001665,2]
[407882540,1772886631764,-693.3919763,0.0001665,2]
[407882541,1772886631773,-174.61919141,0.0001665,2]
[407882542,1772886631783,-693.3919763,0.0001665,2]
[407882543,1772886631792,-161.16,0.00016663,2]
[407882544,1772886631801,-2000.0,0.00016684,2]
[407882545,1772886631810,-500.0,0.00016703,2]
[407882546,1772886631819,-719.04747942,0.00016705,2]
[407882547,1772886631828,-167.99,0.00016723,2]
[407882548,1772886631837,-745.65223616,0.0001676,2]
[407882549,1772886631846,-773.2413689,0.00016815,2]
[407882550,1772886631855,-801.85129955,0.0001687,2]
[407882551,1772886631864,-831.51979763,0.00016925,2]
[407882552,1772886631874,-161.16,0.00016933,2]
[407882553,1772886631883,-862.28603014,0.0001698,2]
[407882554,1772886631892,-894.19061326,0.00017035,2]
[407882555,1772886631901,-927.27566595,0.0001709,2]
[407882556,1772886631910,-550.0,0.00017145,2]
[407882557,1772886631919,-961.58486559,0.00017145,2]
[407882558,1772886631929,-287.83001248,0.00017198,2]
[407882559,1772886631938,-719.04747942,0.00017198,2]
[407882560,1772886631947,-997.16350561,0.000172,2]
[407882561,1772886631959,-161.16,0.00017203,2]
[407882562,1772886631968,-250.0,0.00017309,2]
[407882563,1772886631978,-161.16,0.00017473,2]
[407882564,1772886631987,-200.0,0.00017515,2]
[407882565,1772886631997,-3000.0,0.00017534,7]
[407882566,1772886632006,-63392.93495719,0.00017708,2]
[407882567,1772886632018,-6212.39286405,0.00017708,2]
[407882568,1772886637406,-596.61108935,0.00017708,2]
[407882569,1772886637515,-423.76630696,0.00017708,2]
[407882570,1772886637528,-841.41446949,0.00017708,2]
[407882571,1772886637539,-434.15793142,0.00017708,2]
[407882572,1772886639649,-540.43249539,0.00017708,2]
[407882573,1772886640135,-590.0917593,0.00017708,2]
[407882574,1772886640146,-342.26322073,0.00017708,2]
[407882577,1772886642525,-13382.16670879,0.00017708,2]
[407882584,1772886645304,-3946.842,0.00017708,2]
[407882591,1772886653455,150.0,0.00013333,2]
[407882592,1772887610120,-192.58271463,0.00013233,2]
[407882594,1772887831438,-307.41728537,0.00013233,2]
[407882595,1772887831448,-277.59604494,0.00013233,2]
[407882596,1772887831458,-513.0,0.00013333,2]
[407882597,1772887831467,-250.0,0.00013814,2]
[407882598,1772887831477,-250.0,0.00014556,2]
[407882599,1772887831486,-300.0,0.00014556,2]
[407882600,1772887831495,-166.66,0.00015442,2]
[407882601,1772887831505,-166.66,0.00015768,2]
[407882602,1772887831515,-180.416132,0.00016033,2]
[407882603,1772887831524,-166.66,0.00016093,2]
[407882604,1772887831533,-54.55433949,0.00016115,2]
[407882605,1772887831547,-559.20566051,0.00016115,2]
[407882606,1772887831556,-4.7021752,0.00016123,2]
[407882607,1772887831571,-145.3078248,0.00016123,2]
[407882608,1772887831580,-2184.43886169,0.00016168,2]
[407882609,1772887831595,-397.84647269,0.00016168,2]
[407882610,1772887831606,-74.26466562,0.00016168,2]
[407882611,1772887831616,-1852.42,0.00016181,2]
[407882612,1772887831625,-357.0,0.00016325,2]
[407882613,1772887831635,-179.51762784,0.00016333,2]
[407882614,1772887831644,-153.91,0.00016333,2]
[407882615,1772887831654,-1600.0,0.00016359,2]
[407882616,1772887831663,-150.01,0.00016393,2]
[407882618,1772887831672,-166.66,0.00016418,2]
[407882620,1772887831682,-300.0,0.00016492,2]
[407882621,1772887831691,-300.0,0.00016492,2]
[407882622,1772887831700,-300.0,0.00016492,2]
[407882623,1772887831709,-1905.48,0.00016493,2]
[407882624,1772887831719,-250.0,0.00016632,2]
[407882625,1772887831728,-150.01,0.00016663,2]
[407882626,1772887831737,-1500.0,0.00016676,2]
[407882627,1772887831747,-1000.0,0.00016676,2]
[407882628,1772887831756,-166.66,0.00016743,2]
[407882629,1772887831765,-15937.7075,0.00016822,2]
[407882630,1772887831776,-10000.01,0.00016912,2]
[407882631,1772887831786,-613.76,0.0001692,2]
[407882632,1772887831795,-550.0,0.00016921,2]
[407882633,1772887831804,-174.61919141,0.00016922,2]
[407882634,1772887831813,-693.3919763,0.00016922,2]
[407882635,1772887831822,-404.69161307,0.00016922,2]
[407882636,1772887831831,-693.3919763,0.00016922,2]
[407882637,1772887831841,-1505.61,0.00016922,2]
[407882638,1772887831850,-2904.53,0.00016922,2]
[407882639,1772887831859,-5539.97,0.00016922,2]
[407882640,1772887831868,-26432.88,0.00016922,2]
[407882641,1772887831877,-150.01,0.00016933,2]
[407882642,1772887831886,-719.04747942,0.00016977,2]
[407882643,1772887831895,-1000.0,0.00016986,2]
[407882644,1772887831904,-745.65223616,0.00017032,2]
[407882645,1772887831914,-166.66,0.00017068,2]
[407882646,1772887831923,-773.2413689,0.00017087,2]
[407882647,1772887831932,-801.85129955,0.00017142,2]
[407882648,1772887831941,-166.66,0.00017144,2]
[407882649,1772887831950,-831.51979763,0.00017197,2]
[407882650,1772887831960,-150.01,0.00017203,2]
[407882651,1772887831968,-342.57665036,0.00017203,2]
[407882652,1772887831977,-325.5,0.00017217,2]
[407882653,1772887831987,-862.28603014,0.00017252,2]
[407882654,1772887831996,-1000.0,0.0001726,2]
[407882655,1772887832006,-525.09,0.00017273,2]
[407882656,1772887832015,-292.18,0.00017282,2]
[407882657,1772887832024,-894.19061326,0.00017307,2]
[407882658,1772887832034,-927.27566595,0.00017362,2]
[407882659,1772887832043,-961.58486559,0.00017417,2]
[407882660,1772887832053,-194.24097533,0.0001747,2]
[407882661,1772887832062,-719.04747942,0.0001747,2]
[407882662,1772887832071,-997.16350561,0.00017472,2]
[407882663,1772887832081,-150.01,0.00017473,2]
[407882664,1772887832090,-41500.6154054,0.00017521,2]
[407882665,1772887832103,-6268.2792228,0.00017521,2]
[407882666,1772887832112,-11243.3134997,0.00017521,2]
[407882667,1772887832121,-3000.0,0.00017534,7]
[407882668,1772887832131,-1000.0,0.00017534,2]
[407882669,1772887832141,-500.0,0.00017573,2]
[407882670,1772887832150,-1293.75366684,0.00017607,2]
[407882671,1772887832159,-2343.68771071,0.00017608,2]
[407882672,1772887832169,-250.0,0.00017688,2]
[407882673,1772887832179,-751.64,0.00017697,2]
[407882674,1772887832189,-250.0,0.00017697,2]
[407882675,1772887832198,-500.0,0.00017697,2]
[407882676,1772887832208,-500.0,0.00017697,2]
[407882677,1772887832217,-500.0,0.00017697,2]
[407882678,1772887832227,-500.0,0.00017697,2]
[407882679,1772887832236,-500.0,0.00017697,2]
[407882680,1772887832245,-500.0,0.00017697,2]
[407882681,1772887832255,-500.0,0.00017697,2]
[407882682,1772887832264,-500.0,0.00017697,2]
[407882683,1772887832274,-500.0,0.00017697,2]
[407882684,1772887832283,-500.0,0.00017697,2]
[407882685,1772887832293,-500.0,0.00017697,2]
[407882686,1772887832302,-200.0,0.00017697,2]
[407882687,1772887832311,-500.0,0.00017697,2]
[407882688,1772887832320,-151.0,0.00017697,2]
[407882689,1772887832330,-151.0,0.00017697,2]
[407882690,1772887832339,-151.0,0.00017697,2]
[407882691,1772887832349,-151.0,0.00017697,2]
[407882692,1772887832358,-151.0,0.00017697,2]
[407882693,1772887832367,-151.0,0.00017697,2]
[407882694,1772887832377,-151.0,0.00017697,2]
[407882695,1772887832386,-151.0,0.00017697,2]
[407882696,1772887832396,-151.0,0.00017697,2]
[407882697,1772887832405,-151.0,0.00017697,2]
[407882698,1772887832419,-169.27143825,0.00017697,2]
[407882699,1772887832429,-500.0,0.00017698,2]
[407882700,1772887832439,-500.0,0.00017698,2]
[407882701,1772887832449,-500.0,0.00017698,2]
[407882702,1772887832458,-164.64776858,0.00017698,2]
[407882703,1772887832468,-150.0,0.00017698,2]
[407882704,1772887832478,-500.0,0.00017698,2]
[407882705,1772887832488,-500.0,0.00017698,2]
[407882706,1772887832498,-500.0,0.00017698,2]
[407882707,1772887832507,-500.0,0.00017707,2]
[407882708,1772887832517,-500.0,0.00017708,2]
[407882709,1772887832526,-166.66,0.0001771,2]
[407882710,1772887832539,-487.4078933,0.00017712,2]
[407882711,1772887832548,-613.76,0.00017726,2]
[407882712,1772887832557,-1482.67,0.00017735,2]
[407882713,1772887832566,-150.01,0.00017743,2]
[407882714,1772887832578,-500.0,0.00017753,2]
[407882715,1772887832588,-561.66021598,0.00017753,2]
[407882716,1772887832598,-500.0,0.00017753,2]
[407882717,1772887832609,-179.00078399,0.00017753,2]
[407882718,1772887832619,-500.0,0.00017753,2]
[407882719,1772887832628,-500.0,0.00017753,2]
[407882720,1772887832638,-500.0,0.00017753,2]
[407882721,1772887832647,-544.737577,0.00017808,2]
[407882722,1772887832658,-405.0,0.00017808,2]
[407882723,1772887832667,-500.0,0.00017808,2]
[407882724,1772887832678,-175.29398025,0.00017808,2]
[407882725,1772887832687,-500.0,0.00017808,2]
[407882726,1772887832697,-1800.0,0.00017808,7]
[407882727,1772887832707,-3000.0,0.00017808,7]
[407882728,1772887832716,-478.49,0.00017808,2]
[407882729,1772887832724,-1000.0,0.00017808,2]
[407882730,1772887832733,-301.3,0.00017854,2]
[407882731,1772887832742,-1293.75366677,0.00017862,2]
[407882732,1772887832751,-500.0,0.00017862,2]
[407882733,1772887832761,-500.0,0.00017862,2]
[407882734,1772887832770,-2343.68771071,0.00017863,2]
[407882735,1772887832780,-5461.77241743,0.000179,2]
[407882736,1772887832789,-5461.77241742,0.000179,2]
[407882737,1772887832798,-5461.77241742,0.000179,2]
[407882738,1772887832807,-5461.77241742,0.000179,2]
[407882739,1772887832816,-500.0,0.00017917,2]
[407882740,1772887832826,-151.0,0.00017935,2]
[407882741,1772887832835,-751.64,0.00017971,2]
[407882742,1772887832843,-264.04850966,0.00017972,2]
[407882743,1772887832852,-199.8,0.00018,4]
[407882744,1772887832861,-150.01,0.00018013,2]
[407882745,1772887832870,-745.65223616,0.00018018,2]
[407882746,1772887832879,-466.0,0.00018021,2]
[407882747,1772887832887,-1000.0,0.00018082,2]
[407882748,1772887832896,-220.26,0.00018115,2]
[407882749,1772887832905,-386.04,0.00018115,2]
[407882750,1772887832915,-1293.75366677,0.00018117,2]
[407882751,1772887832924,-2343.68771071,0.00018117,2]
[407882752,1772887832933,-1000.0,0.000182,2]
[407882753,1772887832942,-1000.0,0.000182,3]
[407882754,1772887832951,-751.64,0.00018245,2]
[407882755,1772887832960,-200.0,0.00018245,2]
[407882756,1772887832970,-500.0,0.00018245,2]
[407882757,1772887832979,-166.66,0.00018275,2]
[407882758,1772887832987,-150.01,0.00018283,2]
[407882759,1772887832996,-159.23897655,0.00018293,2]
[407882760,1772887833005,-301.3,0.00018301,2]
[407882761,1772887833014,-1850.07780943,0.00018332,2]
[407882762,1772887833023,-1999.0,0.00018356,2]
[407882763,1772887833032,-500.0,0.00018371,2]
[407882764,1772887833041,-500.0,0.00018371,2]
[407882765,1772887833050,-1293.75366677,0.00018371,2]
[407882766,1772887833059,-185.37187141,0.00018372,2]
[407882767,1772887833071,-2158.3158393,0.00018372,2]
[407882768,1772887833080,-638.83981969,0.00018385,2]
[407882769,1772887833088,-1600.0,0.00018403,2]
[407882770,1772887833098,-151.0,0.00018432,2]
[407882771,1772887833107,-751.64,0.00018519,2]
[407882772,1772887833119,-613.76,0.00018532,2]
[407882773,1772887833130,-781.06,0.00018534,2]
[407882774,1772887833140,-150.01,0.00018553,2]
[407882775,1772887833151,-1850.07780942,0.00018556,2]
[407882776,1772887833160,-773.2413689,0.00018566,2]
[407882777,1772887833170,-168.0,0.00018587,2]
[407882778,1772887833179,-1293.75366677,0.00018626,2]
[407882779,1772887833188,-2343.68771071,0.00018627,2]
[407882780,1772887833197,-3000.0,0.0001863,7]
[407882781,1772887833207,-1358.4677468,0.00018712,2]
[407882782,1772887833216,-2804.0,0.0001872,2]
[407882783,1772887833225,-301.3,0.00018747,2]
[407882784,1772887833234,-1850.07780942,0.0001878,2]
[407882785,1772887833243,-151.18914997,0.0001879,2]
[407882786,1772887833252,-2000.0,0.0001879,2]
[407882787,1772887833261,-3257.86731333,0.0001879,2]
[407882788,1772887833270,-751.64,0.00018793,2]
[407882789,1772887833280,-200.0,0.00018793,2]
[407882790,1772887833288,-500.0,0.00018793,2]
[407882791,1772887833297,-1358.4677468,0.00018795,2]
[407882792,1772887833306,-781.06,0.00018808,2]
[407882793,1772887833315,-150.01,0.00018823,2]
[407882794,1772887833324,-166.66,0.00018841,2]
[407882795,1772887833333,-1358.4677468,0.00018877,2]
[407882796,1772887833342,-1293.75366677,0.00018881,2]
[407882797,1772887833351,-2343.68771071,0.00018881,2]
[407882798,1772887833360,-2700.0,0.000189,6]
[407882799,1772887833369,-1800.0,0.00018904,7]
[407882800,1772887833378,-3000.0,0.00018904,7]
[407882801,1772887833387,-550.0,0.00018918,2]
[407882802,1772887833396,-1358.4677468,0.00018932,2]
[407882803,1772887833405,-2000.0,0.0001899,2]
[407882804,1772887833414,-500.0,0.00018999,2]
[407882805,1772887833423,-544.59,0.00019,7]
[407882806,1772887833432,-3170.3555269,0.00019,2]
[407882807,1772887833441,-1850.07780942,0.00019004,2]
[407882808,1772887833450,-1358.4677468,0.00019014,2]
[407882809,1772887833459,-751.64,0.00019067,2]
[407882810,1772887833468,-3075.06,0.00019082,2]
[407882811,1772887833477,-3075.06,0.00019082,2]
[407882812,1772887833487,-3075.06,0.00019082,2]
[407882813,1772887833496,-3075.06,0.00019082,2]
[407882814,1772887833505,-3790.09,0.00019082,2]
[407882815,1772887833514,-783.81,0.00019082,2]
[407882816,1772887833523,-150.01,0.00019093,2]
[407882817,1772887833532,-1358.4677468,0.00019096,2]
[407882818,1772887833544,-801.85129955,0.00019114,2]
[407882819,1772887833554,-1293.75366677,0.00019136,2]
[407882820,1772887833563,-2343.68771071,0.00019136,2]
[407882821,1772887833572,-151.0,0.00019137,2]
[407882822,1772887833582,-619.0,0.00019142,2]
[407882823,1772887833591,-3503.0,0.00019142,2]
[407882824,1772887833600,-1042.0,0.00019142,2]
[407882825,1772887833610,-1341.0,0.00019142,2]
[407882826,1772887833618,-1279.0,0.00019142,2]
[407882827,1772887833627,-1212.0,0.00019142,2]
[407882828,1772887833636,-922.0,0.00019142,2]
[407882829,1772887833645,-2460.0,0.00019142,2]
[407882830,1772887833653,-414.0,0.00019142,2]
[407882831,1772887833662,-2652.872,0.00019164,2]
[407882832,1772887833672,-181.055,0.00019164,2]
[407882833,1772887833680,-522.0,0.00019178,2]
[407882834,1772887833690,-2726.09,0.00019178,2]
[407882835,1772887833701,-605.111,0.00019178,2]
[407882836,1772887833710,-665.97,0.00019178,30]
[407882837,1772887833719,-1358.4677468,0.00019178,2]
[407882838,1772887833729,-732.794215,0.00019178,2]
[407882839,1772887833738,-732.794215,0.00019178,2]
[407882840,1772887833747,-732.794215,0.00019178,2]
[407882841,1772887833758,-732.794215,0.00019178,2]
[407882842,1772887833768,-732.794215,0.00019178,2]
[407882843,1772887833777,-732.794215,0.00019178,2]
[407882844,1772887833787,-732.794215,0.00019178,2]
[407882845,1772887833796,-732.794215,0.00019178,2]
[407882846,1772887833807,-732.794215,0.00019178,2]
[407882847,1772887833819,-732.794215,0.00019178,2]
[407882848,1772887833831,-732.794215,0.00019178,2]
[407882849,1772887833840,-732.794215,0.00019178,2]
[407882850,1772887833848,-337.45559601,0.00019178,2]
[407882851,1772887833862,-948.89552399,0.00019178,2]
[407882852,1772887833872,-305.52256278,0.00019178,2]
[407882853,1772887833883,-806.0,0.00019178,2]
[407882854,1772887833895,-174.82855722,0.00019178,2]
[407882855,1772887833905,-713.89021995,0.00019178,2]
[407882856,1772887833918,-572.46090005,0.00019178,2]
[407882857,1772887833928,-1286.35112,0.00019178,2]
[407882858,1772887833939,-156.99285414,0.00019178,2]
[407882859,1772887833953,-586.72094737,0.00019178,2]
[407882860,1772887833964,-542.63731849,0.00019178,2]
[407882861,1772887833973,-1286.35112,0.00019178,2]
[407882862,1772887833982,-1286.35112,0.00019178,2]
[407882863,1772887833992,-1286.35112,0.00019178,2]
[407882864,1772887834002,-150.0,0.00019178,2]
[407882865,1772887834013,-477.78848885,0.0001919,2]
[407882866,1772887834025,-297.04785907,0.0001919,2]
[407882869,1772887837510,-151.18914996,0.00019178,2]
[407882870,1772887837520,-474.52594191,0.0001919,2]
[407882871,1772887837565,-750.63771017,0.0001919,2]
[407882872,1772887837574,-301.3,0.00019193,2]
[407882873,1772887837583,-224.84879983,0.000192,2]
[407882874,1772887837594,-1108.66554726,0.000192,2]
[407882875,1772887837605,-666.48565291,0.000192,2]
[407882876,1772887837614,-124.33944041,0.000192,7]
[407882877,1772887837625,-3307.74066334,0.000192,7]
[407882878,1772887837635,-1244.377,0.000192,7]
[407882879,1772887837675,-321.99841679,0.000192,7]
[407882880,1772887837687,-501.54447946,0.000192,7]
[407882881,1772887837697,-739.0,0.000192,2]
[407882882,1772887837707,-250.0,0.00019215,2]
[407882883,1772887837716,-168.0,0.00019221,2]
[407882884,1772887837728,-1850.07780942,0.00019228,2]
[407882885,1772887837739,-1358.4677468,0.00019233,2]
[407882886,1772887837749,-168.0,0.00019277,2]
[407882887,1772887837759,-291.0,0.00019296,2]
[407882888,1772887837770,-8300.0,0.000193,7]
[407882889,1772887837780,-1358.4677468,0.00019315,2]
[407882891,1772887837789,-613.76,0.00019338,2]
[407882893,1772887837798,-751.64,0.00019341,2]
[407882895,1772887837807,-201.25450726,0.00019341,2]
[407882897,1772887837816,-500.0,0.00019341,2]
[407882898,1772887837826,-150.0,0.00019341,2]
[407882900,1772887837834,-310.62,0.00019346,2]
[407882902,1772887837843,-444.81,0.00019346,2]
[407882904,1772887837852,-266.88,0.00019346,2]
[407882906,1772887837862,-223.48,0.00019346,2]
[407882908,1772887837870,-150.01,0.00019363,2]
[407882910,1772887837880,-732.794215,0.00019371,2]
[407882912,1772887837890,-732.794215,0.00019371,2]
[407882914,1772887837899,-732.794215,0.00019371,2]
[407882916,1772887837909,-732.794215,0.00019371,2]
[407882918,1772887837919,-2000.0,0.0001939,2]
[407882920,1772887837928,-1293.75366677,0.0001939,2]
[407882922,1772887837937,-2343.68771071,0.00019391,2]
[407882924,1772887837946,-513.0,0.00019394,7]
[407882926,1772887837955,-1358.4677468,0.00019397,2]
[407882928,1772887837964,-172.78723296,0.000194,7]
[407882930,1772887837973,-151.0,0.000194,2]
[407882932,1772887837982,-5000.0,0.000194,2]
[407882934,1772887837991,-1522.21456603,0.000194,7]
[407882937,1772887838010,-1176.555,0.000194,7]
[407882939,1772887838021,-593.41340116,0.000194,7]
[407882941,1772887838032,-382.89723176,0.000194,7]
[407882952,1772887840013,-7424.91980105,0.000194,7]
[407882953,1772887840025,-166.66,0.00019407,2]
[407882954,1772887840034,-1850.07780942,0.00019452,2]
[407882955,1772887840045,-1358.4677468,0.00019479,2]
[407882956,1772887840055,-13900.0,0.000195,7]
[407882957,1772887840066,-1358.4677468,0.00019534,2]
[407882958,1772887840077,-271.71,0.00019548,2]
[407882959,1772887840087,-172.78723296,0.00019574,2]
[407882960,1772887840098,-160.0,0.00019574,2]
[407882961,1772887840107,-282.0,0.00019588,2]
[407882962,1772887840118,-2000.0,0.0001959,2]
[407882963,1772887840127,-1286.35112,0.0001959,2]
[407882964,1772887840137,-1286.35112,0.0001959,2]
[407882965,1772887840147,-1286.35112,0.0001959,2]
[407882966,1772887840157,-1286.35112,0.0001959,2]
[407882967,1772887840166,-3546.09787362,0.000196,2]
[407882968,1772887840175,-2700.0,0.000196,7]
[407882969,1772887840185,-168.0,0.00019606,2]
[407882970,1772887840194,-205.0,0.00019611,2]
[407882971,1772887840203,-751.71240899,0.00019615,2]
[407882972,1772887840212,-150.14,0.00019633,2]
[407882973,1772887840221,-301.3,0.0001964,2]
[407882974,1772887840230,-1293.75366677,0.00019645,2]
[407882975,1772887840239,-2343.68771071,0.00019645,2]
[407882976,1772887840249,-291.0,0.00019648,2]
[407882977,1772887840258,-1850.07780942,0.00019676,2]